Cogmind - Beta 14 @@@ ROGUE MODE // 2024.08.08 @ 10:50:07 Player: Rohain Result: Self-destructed Performance ------------- Evolutions (1) 500 Regions Visited (2) 400 Robots Destroyed (24) 120 Value Destroyed (744) 744 Prototype IDs (0) 0 Alien Tech Used (0) 0 Bonus (0) 0 TOTAL SCORE: 1764 Bonus ------- None Cogmind --------- Core Integrity 244/400 Matter 300/300 Energy 90/100 System Corruption 0% Temperature Cool (9) Movement Walking (260) Ox2 Location -9/Materials Parts ------- > --- POWER (1) -------- (None) > --- PROPULSION (4) --- Aluminum Leg > --- UTILITY (2) ------ Large Storage Unit > --- WEAPON (2) ------- Beam Rifle > --- INVENTORY (15) --- Heat Sink Improved Targeting Computer Improved Targeting Computer Improved Targeting Computer Improved Targeting Computer Improved Targeting Computer Hardened Light Armor Plating Hardened Light Armor Plating EM Pulse Gun Medium Laser Small Laser Beam Rifle Beam Rifle Particle Gun Light Assault Rifle Peak State ------------ > --- POWER ------------ Improved Ion Engine > --- PROPULSION ------- Light Treads Light Treads Aluminum Leg Aluminum Leg > --- UTILITY ---------- Improved Heat Sink Large Storage Unit > --- WEAPON ----------- Beam Rifle Beam Rifle > --- INVENTORY -------- Heat Sink Improved Targeting Computer Improved Targeting Computer Improved Targeting Computer Improved Targeting Computer Improved Targeting Computer Hardened Light Armor Plating Hardened Light Armor Plating EM Pulse Gun Medium Laser Small Laser Beam Rifle Beam Rifle Particle Gun Light Assault Rifle [Rating: 16] Favorites ----------- Power Ion Engine Engine Ion Engine Propulsion Aluminum Leg Treads Light Treads Leg Aluminum Leg Utility Improved Heat Sink Device Improved Heat Sink Storage Large Storage Unit Weapon Beam Rifle Energy Gun Beam Rifle Build | -11 -10 -9 ------- Run | Yrd Mat Mat Slots Evolved 2 | . . 2 Power . | . . . Propulsion 2 | . . 2 Utility . | . . . Weapon . | . . . Parts Attached 30 | 5 13 12 Power 3 | 1 1 1 Engine 3 | 1 1 1 Core . | . . . Reactor . | . . . Propulsion 14 | 2 5 7 Treads 3 | . . 3 Leg 11 | 2 5 4 Wheel . | . . . Hover . | . . . Flight . | . . . Utility 6 | 1 4 1 Device 4 | . 4 . Storage 2 | 1 . 1 Processor . | . . . Hackware . | . . . Protection . | . . . Artifact . | . . . Weapon 7 | 1 3 3 Energy Gun 7 | 1 3 3 Energy Cannon . | . . . Ballistic Gun . | . . . Ballistic Cannon . | . . . Launcher . | . . . Special Weapon . | . . . Impact Weapon . | . . . Slashing Weapon . | . . . Piercing Weapon . | . . . Special Melee Weapon . | . . . Unidentified Prototypes . | . . . Parts Lost 10 | . 1 9 Power 1 | . . 1 Propulsion 6 | . . 6 Utility 2 | . 1 1 Weapon 1 | . . 1 Highest Loss Streak 5 | . 1 5 To Critical Strikes . | . . . Average Slot Usage (%) 91 | . 93 90 Engine 12 | . 14 10 Treads 4 | . . 8 Leg 28 | . 28 28 Device 10 | . 10 10 Storage 12 | . 14 11 Energy Gun 23 | . 24 21 Peak Build Rating 16 | 5 10 16 Average Rating 10 | 3 7 14 On Entrance 5 | . 5 10 Naked Turns . | . . . Heaviest Build 34 | 12 16 34 Greatest Support 40 | 20 20 40 Greatest Overweight (x) 2 | . . 2 Average Overweight (x) . | . . . Largest Inventory Capacity 15 | 8 8 15 Average Capacity 11 | 6 8 14 Most Carried 15 | 4 8 15 Average Carried 9 | 1 5 13 Final Capacity 15 | 8 8 15 Final Carried 15 | 3 7 15 Class Distribution -------------------- 55% | Mutant 44% | Scavenger-Mutant Dominant Class ---------------- Mutant | -10/Materials Scavenger-Mutant | -9/Materials Resources | -11 -10 -9 ----------- Run | Yrd Mat Mat Matter Collected 470 | 205 160 105 Remotely . | . . . Salvage Created 921 | . 347 574 Parts 48 | . 15 33 Haulers Intercepted . | . . . Recyclers Shooed 2 | . . 2 Parts Field Recycled . | . . . Retrieved Matter . | . . . Parts Self-Destructed . | . . . Prevented . | . . . Kills | -11 -10 -9 ------- Run | Yrd Mat Mat Combat Hostiles Destroyed 22 | . 8 14 Guns 19 | . 8 11 Classes Destroyed 6 | . 2 4 Recycler 1 | . . 1 Watcher 1 | . 1 . Swarmer 6 | . . 6 Grunt 9 | . 8 1 Duelist 1 | . . 1 Sentry 6 | . . 6 Best Kill Streak 6 | . 2 6 Combat Bots Only 5 | . 2 5 Max Kills in Single Turn 2 | . 1 2 Gunslinging 1 | . . 1 Exploded . | . . . Melee . | . . . Uniques/NPCs Destroyed . | . . . Combat | -11 -10 -9 -------- Run | Yrd Mat Mat Hostile Shots Fired 158 | . 45 113 Missed 33 | . 8 25 Damage Taken 1572 | . 486 1086 Core 248 | . 92 156 Absorbed by Shields . | . . . Core Remaining (%) 81 | 100 63 . Volleys Fired 91 | . 38 53 Largest 2 | . 2 2 Hottest 115 | . 115 115 Shots Fired 167 | . 62 105 Gun 167 | . 62 105 Cannon . | . . . Launcher . | . . . Special . | . . . Kinetic . | . . . Thermal 167 | . 62 105 Explosive . | . . . Electromagnetic . | . . . Robot Hit Streak 12 | . 12 9 Robot Miss Streak 4 | . 3 4 Penetration Max . | . . . Secondary Targets 2 | . . 2 Max Gunslinging Chain 1 | . . 1 Shots Hit Robots 109 | . 47 62 Core Hits 41 | . 21 20 Critical Kills . | . . . Critical Parts Destroyed . | . . . Critical Strikes 8 | . 4 4 Burn 8 | . 4 4 Melee Attacks . | . . . Impact . | . . . Slashing . | . . . Piercing . | . . . Sneak Attacks . | . . . Combat Hostiles . | . . . Follow-up Attacks . | . . . Damage Inflicted 1584 | . 608 976 Guns 1584 | . 608 976 Cannons . | . . . Explosions . | . . . Melee . | . . . Ramming . | . . . Kinetic . | . . . Thermal 1584 | . 608 976 Explosive . | . . . Electromagnetic . | . . . Impact . | . . . Slashing . | . . . Piercing . | . . . Highest Corruption . | . . . Average Corruption . | . . . Corruption Purged . | . . . Corruption Blocked . | . . . Overload Shots . | . . . Overflow Damage . | . . . Projectiles . | . . . Explosions . | . . . Melee . | . . . Knockbacks . | . . . Impact . | . . . Kinetic . | . . . Secondary . | . . . Self-Inflicted Damage . | . . . Shots . | . . . Rammed . | . . . Targets Rammed . | . . . Kicked . | . . . Crushed . | . . . Highest Temperature 170 | . 170 54 Average Temperature 33 | . 57 15 Received Heat Transfer 555 | . 297 258 Siege Activations . | . . . Robots Corrupted . | . . . Combat Hostiles . | . . . Parts Fried . | . . . Impact Corruptions . | . . . Robots Melted 3 | . . 3 Combat Hostiles 3 | . . 3 Parts Melted 18 | . 7 11 Heat Transferred 4668 | . 1893 2775 Parts Sabotaged . | . . . Parts Stolen . | . . . Parts Stripped . | . . . Power Chain Reactions . | . . . Alert | -11 -10 -9 ------- Run | Yrd Mat Mat Peak Influence 377 | . 250 377 Initial 46 | . . 46 Average 155 | . 103 212 Maximum Alert Level 1 | . 1 1 Low Security (%) 65 | 100 95 37 Level 1 34 | . 4 62 Level 2 . | . . . Level 3 . | . . . Level 4 . | . . . Level 5 . | . . . High Security . | . . . Max Security . | . . . Squads Dispatched 1 | . . 1 Investigation . | . . . Extermination . | . . . Reinforcement 1 | . . 1 Assault . | . . . Garrison . | . . . Intercept . | . . . Searches Triggered . | . . . Construction Impeded . | . . . Haulers Reinforced . | . . . Active Scanning Responses . | . . . Cargo Convoy Interrupts . | . . . Stealth | -11 -10 -9 --------- Run | Yrd Mat Mat Distress Signals 1 | . . 1 Communications Jammed . | . . . Distress Signals . | . . . Times Spotted 45 | . 18 27 Peak Tracking Total 12 | . 4 12 Tactical Retreats 3 | . 1 2 Traps | -11 -10 -9 ------- Run | Yrd Mat Mat Traps Triggered . | . . . Indirectly . | . . . Trap Hack Attempts . | . . . Triggered . | . . . Disarmed . | . . . Reprogrammed . | . . . Reused . | . . . Traps Extracted . | . . . Installed . | . . . Triggered . | . . . Machines | -11 -10 -9 ---------- Run | Yrd Mat Mat Machines Disabled . | . . . Max in Single Turn . | . . . Machines Repaired . | . . . Machines Dismantled . | . . . Machines Sabotaged . | . . . Overloaded Fab Kills . | . . . Hacking | -11 -10 -9 --------- Run | Yrd Mat Mat Machines Accessed 4 | . 4 . Terminals 4 | . 4 . Fabricators . | . . . Repair Stations . | . . . Recycling Units . | . . . Scanalyzers . | . . . Garrison Access . | . . . Total Hacks 9 | . 9 . Successful 5 | . 5 . Failed 4 | . 4 . Catastrophic 1 | . 1 . Database Lockouts . | . . . Manual 12 | . 12 . Terminals 9 | . 9 . Fabricators . | . . . Repair Stations . | . . . Recycling Units . | . . . Scanalyzers . | . . . Garrison Access . | . . . Terminal Hacks 1 | . 1 . Robot Analysis 1 | . 1 . Fabricator Hacks . | . . . Repair Station Hacks . | . . . Recycling Unit Hacks . | . . . Scanalyzer . | . . . Garrison Access Hacks . | . . . Unauthorized Hacks 4 | . 4 . Terminals 4 | . 4 . Botnet 4 | . 4 . Fabricators . | . . . Repair Stations . | . . . Recycling Units . | . . . Scanalyzers . | . . . Garrison Access . | . . . Data Cores Recovered . | . . . Used . | . . . Hacking Detections 4 | . 4 . Full Trace Events . | . . . Feedback Events . | . . . Feedback Blocked . | . . . Robot Schematics Acquired . | . . . Robots Built . | . . . Authchips . | . . . Time . | . . . Total Robot Build Rating . | . . . Part Schematics Acquired . | . . . Parts Built . | . . . Authchips . | . . . Time . | . . . Total Part Build Rating . | . . . Parts Repaired . | . . . Time . | . . . Parts Recycled . | . . . Recycled Matter . | . . . Retrieved Matter . | . . . Retrieved Components . | . . . Parts Scanalyzed . | . . . Part Schematics Acquired . | . . . Parts Damaged . | . . . Bothacking | -11 -10 -9 ------------ Run | Yrd Mat Mat Used RIF Installer . | . . . Robots Hacked . | . . . Non-combat . | . . . Combat . | . . . Robot Hacks Applied . | . . . Relay Couplers Released . | . . . Fabnet Peak Effective % . | . . . Robots Rewired . | . . . Allies Hacked . | . . . Hacks Repelled . | . . . Allies | -11 -10 -9 -------- Run | Yrd Mat Mat Total Allies . | . . . Largest Group . | . . . Highest-Rated Group . | . . . Highest-Rated Ally . | . . . Total Orders . | . . . Ally Attacks . | . . . Total Damage . | . . . Kills . | . . . Allies Corrupted . | . . . Allies Melted . | . . . Intel | -11 -10 -9 ------- Run | Yrd Mat Mat Robot Analysis Total 1 | . 1 . Derelict Logs Recovered . | . . . Drone Launches . | . . . Drone Recoveries . | . . . Exploration | -11 -10 -9 ------------- Run | Yrd Mat Mat Turns Passed 1420 | 67 607 746 Spaces Moved 727 | 49 365 313 Core 3 | 3 . . Treads 129 | . . 129 Legs 595 | 46 365 184 Wheels . | . . . Hover . | . . . Flight . | . . . Fastest Speed 50 | 50 120 120 Average Speed 141 | 115 120 169 Slowest Speed 260 | 120 120 260 Overloaded Moves . | . . . Propulsion Burnouts . | . . . Robots Hopped . | . . . Cave-ins Triggered . | . . . Exploration Rate (%) 34 | 5 63 36 Regions Visited 2 Branch Regions . Pre-discovered Areas . | . . . Known Exits Taken . | . . . Unknown Exits Taken 2 | 1 1 . Scrap Searched . | . . . Spaces Dug . | . . . Terrain Destroyed . | . . . Melee . | . . . Projectile . | . . . AOE . | . . . Terrain Rammed . | . . . Walls Destroyed . | . . . Machines Disabled . | . . . Actions | -11 -10 -9 --------- Run | Yrd Mat Mat Total 946 | 57 468 421 Wait 74 | . 44 30 Move 725 | 48 364 313 Hop . | . . . Pick Up 18 | 4 5 9 Fast Attach 10 | 4 2 4 Attach 6 | 1 2 3 Detach . | . . . Swap 14 | . 9 5 Drop 8 | . 4 4 Fire 91 | . 38 53 Melee . | . . . Ram . | . . . Kick . | . . . Crush . | . . . Escape Stasis . | . . . Rewire . | . . . Trap . | . . . Miscellaneous . | . . . Route ------- -11/Scrapyard -10/Materials (discovered 2 exits: [*Mat] / [*Min]) -9/Materials (discovered 2 exits: [*Min x2]) History --------- Turn | Location | Event 14 | -11/Scrapyard | Discovered new exit (range 16) 68 | -11/Scrapyard | Entered Materials 261 | -10/Materials | Discovered new exit (range 6) 302 | -10/Materials | Build established: Mutant 504 | -10/Materials | Discovered new exit (range 15) 675 | -10/Materials | Entered another Materials area 675 | -9/Materials | Evolved 2 slots: Propulsion x2 725 | -9/Materials | Discovered new exit (range 16) 1226 | -9/Materials | Build established: Scavenger-Mutant 1269 | -9/Materials | Discovered new exit (range 10) 1421 | -9/Materials | Self-destructed Last Messages --------------- 01392_ Imp. Ion Engine destroyed. 01397_ Y-45 Defender heat spikes uncontrollably. 01398_ Imp. Heat Sink destroyed. 01400_ Y-45 Defender heat damages Beam Rifle, Imp. Ion Engine, Heat Sink. 01401_ Y-45 Defender heat short circuits Beam Rifle. 01404_ Y-45 Defender heat damages Hvy. Assault Rifle, Lgt. Armor Plating. 01407_ Y-45 Defender heat spikes uncontrollably. 01407_ W-16 Scout sends out distress signal. 01410_ Y-45 Defender suffers critical hit (Burn). 01412_ Y-45 Defender heat damages Heat Sink. 01412_ Aluminum Leg destroyed. 01414_ Y-45 Defender heat damages core (-5). 01414_ Hvy. Assault Rifle melted. 01414_ Heat Sink melted. 01416_ Beam Rifle destroyed. 01416_ Aluminum Leg destroyed. Map ----- +----------------------------------------------------+ | #????#"######### # #? ?????????????? | | #????# #???????# # # ??????????????? | | ?????# #???????######?# # """ ""???????????????? | | ?????# #??????????????# + """ ""???????????????? | | ###### #??????????????# # """ ""???????????????? | | #??????????????# # ??????????????? | | ###### #??????????????# #? ?????????????? | | ?????# #???????# "????# #?########?????????????? | | ?????# #???????# # ####???????????????????? | | ?????# #???????# + !##??????????????????? | | ?????# #???????######## !#??????????????????? | | ?????# #??###+## !#??????????????????? | | ?????# #??# ^^ !#??????????????????? | | ?????# #??#^^ ^ !#??????????????????? | | ?????? ???#^^ !! !##??????????????????? | | ?????? ???# !! [ ####???????????????????? | | ?????# #### !!!% %##### #??????????????????????? | | ?????# =% #???# #??????????????????????? | | ?????+ #???# #??????????????????????? | | ?????# #T# #???# #??????????????????????? | | ?????###+####?### ##### ??????????????????????? | | ???????????????# % """## #??????????????????????? | | ???????????????# =% "##w#??????????????????????? | | ???????????????# * !"##g#??????????????????????? | | ???????????????# < ""##r#########??????????????? | | ???????????????# |"##@ m #??????????????? | | ???????????????# "## gg #??????????????? | | ???????????????# """## % g #??????????????? | | ???????????????## #####g""" # ?????????????? | | ????????????????# #???# """g /u ????????????? | | ????????????????# ##### """ "Y" # ??????????? | | ????????????????# + a """ #?##+??????????? | | ????????????????# ##### #??????????????? | | ????????????????# #???###+#######??????????????? | | ?????????????# #???# #??????????????????? | |